bitfinex/quotes_BTCUSD_20241010
["timestamp","ask_amount","ask_price","bid_price","bid_amount"]
[1728571513630,0.24637217,60640.0,60639.0,0.24811]
[1728571513867,0.002,60646.0,60642.0,0.164901]
[1728571514107,0.164883,60649.0,60643.0,0.16083764]
[1728571514354,0.164886,60648.0,60643.0,0.16083764]
[1728571514850,0.164886,60648.0,60645.0,0.164893]
[1728571515085,0.002,60646.0,60645.0,0.16083764]
[1728571515325,0.002,60649.0,60645.0,0.16083764]
[1728571515610,0.002,60649.0,60647.0,0.164886]
[1728571515842,0.164886,60648.0,60645.0,0.16083764]
[1728571516071,0.002,60649.0,60645.0,0.16083764]
[1728571516072,0.166883,60649.0,60645.0,0.16083764]
[1728571516300,0.166883,60649.0,60646.0,0.16489]
[1728571516539,0.006636,60651.0,60646.0,0.329781]
[1728571516796,0.001636,60651.0,60646.0,0.164889]
[1728571517029,0.164887,60648.0,60645.0,0.34905909]
[1728571517271,0.164891,60646.0,60645.0,0.16183764]
[1728571517743,0.166891,60646.0,60645.0,0.16183764]
[1728571517985,0.166891,60646.0,60645.0,0.002]
[1728571518227,0.166891,60646.0,60636.0,0.329832]
[1728571518228,0.329794,60644.0,60636.0,0.329832]
[1728571518477,0.002,60640.0,60639.0,0.24403764]
[1728571518751,0.166907,60640.0,60639.0,0.24403764]
[1728571519000,0.166907,60640.0,60636.0,0.164917]
[1728571519001,0.002,60635.0,60634.0,0.24637217]
[1728571519474,0.002,60635.0,60628.0,0.406879]
[1728571519732,0.33481,60641.0,60628.0,0.406879]
[1728571519733,0.33481,60641.0,60634.0,0.24637217]
[1728571519991,0.164914,60638.0,60635.0,0.16083764]
[1728571520237,0.329827,60638.0,60635.0,0.16083764]
[1728571520467,0.164916,60637.0,60635.0,0.16083764]
[1728571520692,0.164921,60635.0,60634.0,0.014]
[1728571520930,0.166921,60635.0,60634.0,0.014]
[1728571521155,0.166921,60635.0,60631.0,0.16493]
[1728571521405,0.166921,60635.0,60622.0,0.0827]
[1728571521406,0.002,60629.0,60622.0,0.0827]
[1728571521628,0.002,60624.0,60623.0,0.16083764]
[1728571522153,0.166949,60625.0,60621.0,0.164957]
[1728571522393,0.164946,60626.0,60623.0,0.164953]
[1728571522638,0.164949,60625.0,60622.0,0.014]
[1728571522859,0.002,60627.0,60622.0,0.014]
[1728571522860,0.166953,60623.0,60622.0,0.014]
[1728571523085,0.002,60628.0,60622.0,0.014]
[1728571523794,0.002,60623.0,60622.0,0.025]
[1728571524020,0.2001421,60623.0,60622.0,0.011]
[1728571524265,0.2001421,60623.0,60619.0,0.083534]
[1728571524266,0.002,60620.0,60619.0,0.083534]
[1728571524772,0.164962,60620.0,60619.0,0.083534]
[1728571525259,0.166962,60620.0,60619.0,0.083534]
[1728571525750,0.164962,60620.0,60619.0,0.097534]
[1728571526022,0.166962,60620.0,60619.0,0.083534]
[1728571526969,0.166962,60620.0,60619.0,0.088534]
[1728571526970,0.164962,60620.0,60619.0,0.088534]
[1728571527205,0.005,60624.0,60619.0,0.253498]
[1728571527441,0.002,60621.0,60619.0,0.088534]
[1728571527666,0.002,60621.0,60619.0,0.253497]
[1728571527897,0.002,60620.0,60619.0,0.267497]
[1728571528130,0.166955,60623.0,60619.0,0.267498]
[1728571528353,0.002,60620.0,60619.0,0.088534]
[1728571528592,0.002,60620.0,60619.0,0.090534]
[1728571528593,0.166962,60620.0,60619.0,0.090534]
[1728571528823,0.166962,60620.0,60619.0,0.088534]
[1728571529047,0.166962,60620.0,60619.0,0.083534]
[1728571529292,0.166962,60620.0,60619.0,0.090534]
[1728571529293,0.27728037,60620.0,60619.0,0.090534]
[1728571529562,0.164962,60620.0,60619.0,0.090534]
[1728571529801,0.331881,60628.0,60619.0,0.51569309]
[1728571530023,0.002,60626.0,60620.0,0.49075664]
[1728571530256,0.007,60627.0,60624.0,0.164949]
[1728571530484,0.002,60626.0,60623.0,0.164951]
[1728571530721,0.002,60626.0,60620.0,0.16083764]
[1728571530722,0.329861,60632.0,60624.0,0.16083764]
[1728571530959,0.329861,60632.0,60619.0,0.166634]
[1728571530960,0.002,60625.0,60619.0,0.160634]
[1728571531225,0.329891,60626.0,60620.0,0.24637217]
[1728571531226,0.166959,60621.0,60620.0,0.24637217]
[1728571531453,0.002,60621.0,60619.0,0.083534]
[1728571531685,0.166962,60620.0,60619.0,0.083534]
[1728571532407,0.005,60623.0,60619.0,0.083534]
[1728571532636,0.164958,60622.0,60620.0,0.005]
[1728571532885,0.005,60623.0,60619.0,0.083534]
[1728571532886,0.164962,60620.0,60619.0,0.083534]
[1728571533114,0.166962,60620.0,60619.0,0.083534]
[1728571533369,0.329913,60622.0,60619.0,0.083534]
[1728571533370,0.169957,60622.0,60619.0,0.083534]
[1728571533599,0.169937,60629.0,60620.0,0.23803764]
[1728571533856,0.24637217,60633.0,60632.0,0.164929]
[1728571534093,0.24637217,60633.0,60632.0,0.16083764]
[1728571534332,0.166913,60638.0,60632.0,0.49069464]
[1728571534573,0.002,60643.0,60633.0,0.16083764]
[1728571534830,0.001636,60646.0,60633.0,0.16083764]
[1728571534831,0.003636,60646.0,60643.0,0.164899]
[1728571535060,0.003636,60646.0,60638.0,0.18822145]
[1728571535061,0.001636,60646.0,60638.0,0.18822145]
[1728571535295,0.003636,60646.0,60641.0,0.329807]
[1728571535525,0.003636,60646.0,60642.0,0.49064064]
[1728571535526,0.001636,60646.0,60642.0,0.49064064]
[1728571535751,0.164897,60644.0,60642.0,0.16083764]
[1728571536026,0.001636,60646.0,60634.0,0.0828]
[1728571536027,0.164905,60641.0,60634.0,0.0828]
[1728571536268,0.164923,60634.0,60633.0,0.004]
[1728571536495,0.164922,60635.0,60631.0,0.16493]
[1728571536727,0.329844,60635.0,60629.0,0.329872]
[1728571536956,0.164924,60634.0,60631.0,0.164932]
[1728571537199,0.002,60638.0,60628.0,0.077]
[1728571537200,0.007,60638.0,60628.0,0.077]
[1728571537443,0.32986,60632.0,60624.0,0.329899]
[1728571537680,0.002,60635.0,60630.0,0.164932]
[1728571537681,0.164927,60633.0,60630.0,0.164932]
[1728571537919,0.007,60636.0,60631.0,0.004]
[1728571537920,0.164929,60632.0,60631.0,0.004]
[1728571538143,0.005,60636.0,60631.0,0.004]
[1728571538144,0.164922,60635.0,60631.0,0.004]
[1728571538367,0.164922,60635.0,60632.0,0.164928]
[1728571538602,0.001636,60633.0,60632.0,0.164928]
[1728571539068,0.001636,60633.0,60631.0,0.004]
[1728571539301,0.001636,60633.0,60632.0,0.164929]
[1728571540076,0.001636,60633.0,60631.0,0.16083764]
[1728571540558,0.166563,60633.0,60631.0,0.16083764]
[1728571540792,0.166563,60633.0,60632.0,0.008]
[1728571541300,0.166563,60633.0,60632.0,0.018]
[1728571541547,0.166563,60633.0,60627.0,0.41131217]
[1728571541548,0.001636,60633.0,60627.0,0.24637217]
[1728571541782,0.001636,60633.0,60631.0,0.329863]
[1728571542012,0.001636,60633.0,60631.0,0.01]
[1728571542013,0.164929,60632.0,60631.0,0.01]
[1728571542472,0.164936,60630.0,60627.0,0.57215081]
[1728571542721,0.001636,60633.0,60627.0,0.40720981]
[1728571542955,0.164929,60632.0,60631.0,0.008]
[1728571543438,0.16493,60632.0,60627.0,0.16083764]
[1728571543693,0.001636,60633.0,60628.0,0.40720981]
[1728571543924,0.001636,60633.0,60632.0,0.240029]
[1728571544144,0.001636,60633.0,60632.0,0.16083764]
[1728571544374,0.001636,60633.0,60632.0,0.32576664]
[1728571545499,0.001636,60633.0,60632.0,0.33576664]
[1728571545748,0.001636,60633.0,60632.0,0.32576664]
[1728571546249,0.001636,60633.0,60632.0,0.33976664]
[1728571546940,0.001636,60633.0,60632.0,0.35276664]
[1728571551649,0.003636,60633.0,60632.0,0.35276664]
[1728571551891,0.001636,60633.0,60632.0,0.35276664]
[1728571552580,0.001636,60633.0,60632.0,0.18783764]
[1728571552809,0.168562,60633.0,60632.0,0.18783764]
[1728571553301,0.168562,60633.0,60632.0,0.027]
[1728571553545,0.29772855,60633.0,60632.0,0.027]
[1728571553800,0.168562,60633.0,60632.0,0.027]
[1728571554042,0.166562,60633.0,60632.0,0.027]
[1728571554525,0.168562,60633.0,60632.0,0.027]
[1728571555268,0.001636,60633.0,60632.0,0.027]
[1728571555500,0.166562,60633.0,60632.0,0.027]
[1728571555733,0.001636,60633.0,60632.0,0.191929]
[1728571556185,0.001636,60633.0,60632.0,0.35276664]
[1728571559054,0.001636,60633.0,60632.0,0.43376664]
[1728571559746,0.001636,60633.0,60632.0,0.59310881]
[1728571559973,0.001636,60633.0,60632.0,0.5947799]
[1728571560207,0.001636,60633.0,60632.0,0.53476664]
[1728571560700,0.001636,60633.0,60632.0,0.55776664]
[1728571560929,0.001636,60633.0,60632.0,0.54376664]
[1728571561165,0.001636,60633.0,60632.0,0.55776664]
[1728571563286,0.001636,60633.0,60632.0,0.60711018]
[1728571563516,0.001636,60633.0,60632.0,0.55776664]
[1728571563744,0.001636,60633.0,60632.0,0.47676664]
[1728571563975,0.001636,60633.0,60632.0,0.35376664]
[1728571564704,0.003636,60633.0,60632.0,0.028]
[1728571564930,0.003636,60633.0,60632.0,0.192929]
[1728571565164,0.003636,60633.0,60632.0,0.178929]
[1728571565403,0.003636,60633.0,60632.0,0.164929]
[1728571565651,0.003636,60633.0,60632.0,0.01]
[1728571565886,0.003636,60633.0,60632.0,0.185929]
[1728571566363,0.001636,60633.0,60632.0,0.021]
[1728571566608,0.003636,60633.0,60632.0,0.021]
[1728571567289,0.001636,60633.0,60632.0,0.185929]
[1728571567770,0.168562,60633.0,60632.0,0.021]
[1728571567999,0.2209332,60633.0,60632.0,0.021]
[1728571568523,0.5024332,60633.0,60632.0,0.021]
[1728571568526,0.76327084,60633.0,60632.0,0.021]
[1728571568756,0.76497341,60633.0,60632.0,0.011]
[1728571569228,0.76497341,60633.0,60626.0,0.001636]
[1728571569229,0.166943,60627.0,60626.0,0.001636]
[1728571569496,0.35846188,60627.0,60626.0,0.001636]
[1728571569752,0.171943,60627.0,60626.0,0.001636]
[1728571570445,0.166943,60627.0,60626.0,0.001636]
[1728571570695,0.171943,60627.0,60626.0,0.001636]
[1728571571392,0.329865,60631.0,60626.0,0.001636]
[1728571571393,0.334865,60631.0,60626.0,0.001636]
[1728571571655,0.164933,60631.0,60627.0,0.164941]
[1728571571898,0.166934,60630.0,60627.0,0.164941]
[1728571572205,0.166934,60630.0,60626.0,0.173579]
[1728571572422,0.171935,60630.0,60626.0,0.173579]
[1728571572647,0.002,60627.0,60626.0,0.183581]
[1728571572887,0.005,60630.0,60626.0,0.183581]
[1728571572888,0.166936,60630.0,60626.0,0.183581]
[1728571573147,0.164939,60629.0,60626.0,0.023636]
[1728571573387,0.002,60631.0,60628.0,0.164938]
[1728571573638,0.002,60630.0,60627.0,0.16083764]
[1728571573861,0.002,60630.0,60628.0,0.164938]
[1728571574091,0.336859,60632.0,60627.0,0.16083764]
[1728571574347,0.002,60630.0,60627.0,0.16683764]
[1728571574574,0.166934,60631.0,60627.0,0.16083764]
[1728571574817,0.334861,60632.0,60627.0,0.16783764]
[1728571574818,0.002,60628.0,60627.0,0.16783764]
[1728571575066,0.19022145,60628.0,60626.0,0.010636]
[1728571575310,0.19022145,60628.0,60626.0,0.001636]
[1728571575311,0.002,60627.0,60626.0,0.001636]
[1728571576116,0.74165123,60627.0,60626.0,0.001636]
[1728571576313,0.7383538,60627.0,60626.0,0.009636]
[1728571576982,0.63636445,60627.0,60626.0,0.009636]
[1728571577670,0.63636445,60627.0,60626.0,0.001636]
[1728571578121,0.63636445,60627.0,60626.0,0.007636]
[1728571578553,0.63636445,60627.0,60626.0,0.001636]
[1728571579012,0.63836445,60627.0,60626.0,0.001636]
[1728571579471,0.79917106,60627.0,60626.0,0.001636]
[1728571580170,0.63836445,60627.0,60626.0,0.001636]
[1728571582303,0.166943,60627.0,60626.0,0.001636]
[1728571582533,0.173943,60627.0,60626.0,0.001636]
[1728571582983,0.002,60627.0,60626.0,0.16247364]
[1728571583214,0.002,60627.0,60626.0,0.32741864]
[1728571583437,0.002,60627.0,60626.0,0.366666]
[1728571584044,0.001636,60633.0,60628.0,0.329876]
[1728571584317,0.001636,60633.0,60629.0,0.16083764]
[1728571584567,0.001636,60633.0,60626.0,0.001636]
[1728571584568,0.002,60630.0,60626.0,0.001636]
[1728571584822,0.35516445,60627.0,60626.0,0.009636]
[1728571585042,0.35516445,60627.0,60626.0,0.001636]
[1728571585291,0.166943,60627.0,60626.0,0.015636]
[1728571585515,0.35516445,60627.0,60626.0,0.015636]
[1728571585802,0.002,60628.0,60626.0,0.001636]
[1728571586019,0.18985745,60633.0,60627.0,0.16083764]
[1728571586020,0.006636,60633.0,60627.0,0.16083764]
[1728571586285,0.001636,60633.0,60630.0,0.164933]
[1728571586509,0.001636,60633.0,60627.0,0.16083764]
[1728571586510,0.003636,60633.0,60627.0,0.16083764]
[1728571586722,0.329863,60632.0,60627.0,0.16083764]
[1728571586946,0.329863,60632.0,60627.0,0.32577964]
[1728571586947,0.164934,60631.0,60627.0,0.32577964]
[1728571587172,0.001636,60633.0,60628.0,0.24637217]
[1728571587397,0.001636,60633.0,60632.0,0.164929]
[1728571587687,0.001636,60633.0,60632.0,0.32906471]
[1728571587905,0.001636,60633.0,60632.0,0.32576664]
[1728571588797,0.001636,60633.0,60632.0,0.33376664]
[1728571589022,0.001636,60633.0,60632.0,0.32576664]
[1728571589244,0.001636,60633.0,60632.0,0.33676664]
[1728571590410,0.001636,60633.0,60632.0,0.34676664]
[1728571591829,0.001636,60633.0,60632.0,0.73938809]
[1728571592501,0.001636,60633.0,60632.0,0.78873403]
[1728571593000,0.001636,60633.0,60632.0,0.73938809]
[1728571593206,0.001636,60633.0,60632.0,0.92153638]
[1728571593432,0.001636,60633.0,60632.0,0.98551874]
[1728571593654,0.001636,60633.0,60632.0,0.97451874]
[1728571593943,0.001636,60633.0,60632.0,1.00251874]
[1728571594173,0.24637217,60641.0,60640.0,0.164907]
[1728571594404,0.24637217,60641.0,60640.0,0.34874464]
[1728571594638,0.001636,60646.0,60640.0,0.34874464]
[1728571594639,0.001636,60646.0,60641.0,0.023]
[1728571594899,0.001636,60646.0,60645.0,0.164894]
[1728571595175,0.32981,60641.0,60633.0,0.04932737]
[1728571595383,0.164915,60638.0,60634.0,0.41129517]
[1728571595614,0.001636,60646.0,60634.0,0.24637217]
[1728571595615,0.19022145,60637.0,60634.0,0.24637217]
[1728571595851,0.005,60642.0,60640.0,0.014]
[1728571595852,0.35312845,60641.0,60640.0,0.014]
[1728571596095,0.166907,60641.0,60640.0,0.014]
[1728571596838,0.166907,60641.0,60636.0,0.329833]
[1728571596839,0.002,60639.0,60636.0,0.329833]
[1728571597049,0.002,60638.0,60637.0,0.16083764]
[1728571597275,0.002,60639.0,60637.0,0.16083764]
[1728571597525,0.002,60635.0,60628.0,0.329877]
[1728571597763,0.18822145,60640.0,60632.0,0.329856]
[1728571597764,0.002,60634.0,60632.0,0.329856]
[1728571597984,0.002,60634.0,60633.0,0.16083764]
[1728571598447,0.167728,60639.0,60636.0,0.164917]
[1728571598697,0.002,60638.0,60637.0,0.32575264]
[1728571598912,0.000818,60639.0,60638.0,0.164913]
[1728571599155,0.000818,60639.0,60637.0,0.16083764]
[1728571599425,0.000818,60639.0,60637.0,0.1769214]
[1728571599645,0.000818,60639.0,60638.0,0.164913]
[1728571599865,0.000818,60639.0,60638.0,0.32575064]
[1728571601136,0.000818,60639.0,60638.0,0.35975064]
[1728571601869,0.000818,60639.0,60638.0,0.34875064]
[1728571602087,0.000818,60639.0,60638.0,0.43091204]
[1728571602323,0.000818,60639.0,60638.0,0.44191204]
[1728571602566,0.000818,60639.0,60638.0,0.43191204]
[1728571602810,0.000818,60639.0,60638.0,0.44591204]
[1728571603027,0.000818,60639.0,60638.0,0.4706633]
[1728571603502,0.000818,60639.0,60638.0,0.4596633]
[1728571603762,0.000818,60639.0,60638.0,0.4736633]
[1728571606819,0.000818,60639.0,60638.0,0.5736633]
[1728571607113,0.000818,60639.0,60638.0,0.95958475]
[1728571607338,0.000818,60639.0,60638.0,1.08451699]
[1728571607566,0.000818,60639.0,60638.0,1.21703129]
[1728571607822,0.001636,60646.0,60645.0,0.264894]
[1728571608078,0.001636,60646.0,60645.0,0.65303685]
[1728571608324,0.001636,60646.0,60645.0,0.70227963]
[1728571608567,0.001636,60646.0,60645.0,0.77787963]
[1728571609005,0.001636,60646.0,60645.0,0.98452549]
[1728571609282,0.001636,60651.0,60650.0,0.34358]
[1728571609510,0.24637217,60665.0,60650.0,0.34358]
[1728571609511,0.24637217,60657.0,60654.0,0.1]
[1728571609730,0.24637217,60665.0,60651.0,0.023]
[1728571609731,0.24637217,60665.0,60664.0,0.287842]
[1728571609969,0.24637217,60665.0,60664.0,0.44867964]
[1728571610225,0.24637217,60672.0,60664.0,0.26083764]
[1728571610475,0.24637217,60672.0,60667.0,0.329667]
[1728571610706,0.002,60674.0,60672.0,0.164818]
[1728571610959,0.002,60674.0,60673.0,0.16083764]
[1728571612104,0.002,60675.0,60673.0,0.32565464]
[1728571612333,0.002,60675.0,60674.0,0.164815]
[1728571612554,0.002,60676.0,60674.0,0.32565164]
[1728571612775,0.002,60676.0,60675.0,0.16083764]
[1728571613486,0.002,60677.0,60676.0,0.164809]
[1728571613742,0.002,60677.0,60676.0,0.32564664]
[1728571614212,0.002,60677.0,60676.0,0.51386809]
[1728571614460,0.001634,60680.0,60679.0,0.164801]
[1728571614711,0.001634,60680.0,60679.0,0.51386009]
[1728571615186,0.003634,60680.0,60679.0,0.16083764]
[1728571615661,0.001634,60680.0,60679.0,0.16083764]
[1728571616565,0.001634,60680.0,60679.0,0.3920648]
[1728571616787,0.001634,60680.0,60679.0,0.4260648]
[1728571617042,0.001634,60680.0,60679.0,0.33663864]
[1728571617261,0.003634,60680.0,60679.0,0.16783764]
[1728571617501,0.001634,60680.0,60679.0,0.16783764]
[1728571617720,0.001634,60680.0,60679.0,0.16583764]
[1728571617938,0.001634,60680.0,60679.0,0.17983764]
[1728571618219,0.003634,60680.0,60679.0,0.2282638]
[1728571618461,0.001634,60680.0,60679.0,0.4160648]
[1728571618977,0.001634,60680.0,60679.0,0.2512638]
[1728571619232,0.168432,60680.0,60679.0,0.18383764]
[1728571619489,0.356732,60680.0,60679.0,0.023]
[1728571619712,0.54995345,60680.0,60679.0,0.023]
[1728571619930,0.54995345,60680.0,60679.0,0.012]
[1728571620155,0.002,60671.0,60669.0,0.329656]
[1728571620429,0.002,60668.0,60661.0,0.24637217]
[1728571620655,0.2672,60667.0,60661.0,0.24637217]
[1728571620887,0.329676,60666.0,60661.0,0.24637217]
[1728571621131,0.164848,60662.0,60659.0,0.164855]
[1728571621349,0.164848,60662.0,60656.0,0.01642169]
[1728571621350,0.164854,60660.0,60656.0,0.164862]
[1728571621605,0.164854,60660.0,60656.0,0.164863]
[1728571621838,0.1878,60657.0,60638.0,0.001634]
[1728571622055,0.1878,60657.0,60650.0,0.24637217]
[1728571622056,0.166877,60651.0,60650.0,0.24637217]
[1728571622311,0.166877,60651.0,60650.0,0.16083764]
[1728571622548,0.16687,60654.0,60650.0,0.32571564]
[1728571622758,0.329732,60656.0,60642.0,0.24637217]
[1728571622759,0.166874,60653.0,60651.0,0.16083764]
[1728571622984,0.166875,60652.0,60651.0,0.16083764]
[1728571623261,0.002,60647.0,60643.0,0.329798]
[1728571623530,0.002,60647.0,60646.0,0.164891]
[1728571623764,0.002,60647.0,60646.0,0.32572864]
[1728571624022,0.32974,60654.0,60646.0,0.49061864]
[1728571624023,0.164873,60653.0,60646.0,0.49061864]
[1728571624233,0.33174,60654.0,60647.0,0.35235638]
[1728571624234,0.002,60654.0,60647.0,0.35235638]
[1728571624492,0.002,60654.0,60651.0,0.175877]
[1728571624712,0.002,60654.0,60652.0,0.16083764]
[1728571624713,0.166869,60654.0,60652.0,0.16083764]
[1728571624957,0.002,60653.0,60652.0,0.16083764]
[1728571625390,0.002,60654.0,60653.0,0.164872]
[1728571625638,0.002,60654.0,60653.0,0.32570964]
[1728571626181,0.002,60655.0,60653.0,0.16083764]
[1728571626422,0.002,60655.0,60654.0,0.16083764]
[1728571626867,0.166866,60655.0,60654.0,0.16083764]
[1728571627134,0.002,60655.0,60654.0,0.16083764]
[1728571627841,0.166866,60655.0,60654.0,0.16983764]
[1728571628082,0.166866,60655.0,60654.0,0.16083764]
[1728571628301,0.002,60655.0,60654.0,0.16983764]
[1728571628756,0.002,60655.0,60654.0,0.33470664]
[1728571628978,0.166866,60655.0,60654.0,0.16983764]
[1728571629432,0.166866,60655.0,60654.0,0.17983764]
[1728571629698,0.166866,60655.0,60654.0,0.009]
[1728571629914,0.166866,60655.0,60654.0,0.02]
[1728571629915,0.171866,60655.0,60654.0,0.02]
[1728571630159,0.171866,60655.0,60654.0,0.011]
[1728571630431,0.171866,60655.0,60645.0,0.329784]
[1728571630432,0.002,60654.0,60645.0,0.329784]
[1728571630657,0.002,60654.0,60651.0,0.164876]
[1728571630902,0.002,60654.0,60652.0,0.32571164]
[1728571631140,0.007,60655.0,60654.0,0.019]
[1728571631387,0.002,60655.0,60654.0,0.019]
[1728571631630,0.1948,60657.0,60654.0,0.17083764]
[1728571631867,0.002,60655.0,60654.0,0.01]
[1728571632085,0.166866,60655.0,60654.0,0.01]
[1728571632283,0.36338488,60655.0,60654.0,0.01]
[1728571632534,0.171875,60652.0,60651.0,0.01]
[1728571632764,0.007,60652.0,60651.0,0.01]
[1728571633231,0.002,60653.0,60651.0,0.01]
[1728571633495,0.002,60653.0,60652.0,0.164875]
[1728571633496,0.007,60653.0,60652.0,0.164875]
[1728571633737,0.164875,60652.0,60651.0,0.16083764]
[1728571633971,0.164875,60652.0,60650.0,0.001634]
[1728571633972,0.005,60652.0,60650.0,0.166513]
[1728571634182,0.005,60652.0,60651.0,0.013]
[1728571634423,0.005,60652.0,60650.0,0.16247164]
[1728571634644,0.169875,60652.0,60650.0,0.16247164]
[1728571634893,0.17187,60654.0,60651.0,0.164875]
[1728571635130,0.166872,60653.0,60652.0,0.011]
[1728571635358,0.002,60653.0,60652.0,0.011]
[1728571635819,0.171872,60653.0,60652.0,0.023]
[1728571636049,0.002,60653.0,60652.0,0.18383764]
[1728571636254,0.005817,60655.0,60652.0,0.18383764]
[1728571636471,0.005817,60655.0,60653.0,0.16083764]
[1728571636926,0.002,60654.0,60653.0,0.16083764]
[1728571637424,0.166869,60654.0,60653.0,0.16083764]
[1728571637893,0.002,60654.0,60653.0,0.16083764]
[1728571638336,0.002,60654.0,60653.0,0.17083764]
[1728571638636,0.164869,60654.0,60653.0,0.17083764]
[1728571638871,0.166869,60654.0,60653.0,0.18083764]
[1728571639124,0.166869,60654.0,60653.0,0.17083764]
[1728571639625,0.166869,60654.0,60653.0,0.18183764]
[1728571640064,0.44328788,60654.0,60653.0,0.021]
[1728571640291,0.43999045,60654.0,60653.0,0.021]
[1728571640771,0.43999045,60654.0,60653.0,0.01]
[1728571641019,0.43999045,60654.0,60650.0,0.001634]
[1728571641020,0.171877,60651.0,60650.0,0.001634]
[1728571641255,0.17517443,60651.0,60650.0,0.001634]
[1728571643463,0.17617443,60651.0,60650.0,0.001634]
[1728571643717,0.36339588,60651.0,60650.0,0.001634]
[1728571643961,0.54759845,60651.0,60650.0,0.001634]
[1728571644470,0.359377,60651.0,60650.0,0.001634]
[1728571644965,0.172877,60651.0,60650.0,0.001634]
[1728571645219,0.36109845,60651.0,60650.0,0.001634]
[1728571645700,0.36009845,60651.0,60650.0,0.001634]
[1728571645956,0.36091545,60651.0,60650.0,0.001634]
[1728571646204,0.36091545,60651.0,60650.0,0.018634]
[1728571646205,0.63791545,60651.0,60650.0,0.018634]
[1728571646455,0.63791545,60651.0,60650.0,0.009634]
[1728571646706,0.63791545,60651.0,60650.0,0.006634]
[1728571646957,0.63791545,60651.0,60650.0,0.005634]
[1728571647201,0.449694,60651.0,60650.0,0.005634]
[1728571647458,0.449694,60651.0,60650.0,0.001634]
[1728571647706,0.450694,60651.0,60650.0,0.001634]
[1728571649191,0.368594,60651.0,60650.0,0.001634]
[1728571649946,0.367594,60651.0,60650.0,0.001634]
[1728571650208,0.000817,60651.0,60650.0,0.32735164]
[1728571650440,0.000817,60651.0,60650.0,0.33435164]
[1728571651183,0.002817,60651.0,60650.0,0.16947164]
[1728571651413,0.167694,60651.0,60650.0,0.16947164]
[1728571651655,0.35591545,60651.0,60650.0,0.008634]
[1728571652148,0.35591545,60651.0,60650.0,0.004634]
[1728571652384,0.35591545,60651.0,60650.0,0.011634]
[1728571652650,0.35591545,60651.0,60650.0,0.010634]
[1728571652901,0.35591545,60651.0,60650.0,0.017634]
[1728571653141,0.35591545,60651.0,60650.0,0.008634]
[1728571653381,0.35591545,60651.0,60650.0,0.014634]
[1728571653623,0.167694,60651.0,60650.0,0.014634]
[1728571654386,0.002817,60651.0,60650.0,0.17547164]
[1728571654607,0.000817,60651.0,60650.0,0.34035164]
[1728571655051,0.002817,60651.0,60650.0,0.34035164]
[1728571655295,0.002817,60651.0,60650.0,0.17547164]
[1728571655520,0.002817,60651.0,60650.0,0.34035164]
[1728571656273,0.000817,60651.0,60650.0,0.34035164]
[1728571656524,0.000817,60651.0,60650.0,0.35580508]
[1728571657208,0.000817,60651.0,60650.0,0.34980508]
[1728571657671,0.000817,60651.0,60650.0,0.44980508]
[1728571657941,0.000817,60651.0,60650.0,0.77103186]
[1728571658175,0.000817,60654.0,60653.0,0.47609345]
[1728571658391,0.000817,60654.0,60653.0,0.77990511]
[1728571658631,0.000817,60655.0,60653.0,0.77990511]
[1728571658632,0.000817,60655.0,60654.0,0.287869]
[1728571658899,0.000817,60655.0,60654.0,0.5258243]
[1728571659110,0.000817,60655.0,60654.0,0.71963027]
[1728571659379,0.000817,60655.0,60654.0,0.645809]
[1728571659592,0.000817,60655.0,60654.0,0.83403045]
[1728571659807,0.000817,60655.0,60654.0,0.90903552]
[1728571660036,0.001634,60680.0,60671.0,0.264823]
[1728571660281,0.001634,60680.0,60671.0,0.78676224]
[1728571660791,0.001634,60680.0,60678.0,0.164804]
[1728571661037,0.001634,60680.0,60678.0,0.51386309]
[1728571661260,0.001634,60680.0,60679.0,0.164801]
[1728571661500,0.001634,60680.0,60679.0,0.32563864]
[1728571661728,0.003634,60680.0,60679.0,0.1896355]
[1728571661935,0.003634,60680.0,60679.0,0.3544365]
[1728571662157,0.003634,60680.0,60679.0,0.1896355]
[1728571662879,0.003634,60680.0,60672.0,0.24637217]
[1728571662880,0.002,60674.0,60673.0,0.164816]
[1728571663126,0.003634,60680.0,60679.0,0.012]
[1728571663363,0.168432,60680.0,60679.0,0.023]
[1728571663796,0.168432,60680.0,60679.0,0.012]
[1728571664048,0.001634,60680.0,60679.0,0.39928254]
[1728571664505,0.001634,60680.0,60679.0,0.38728254]
[1728571665444,0.001634,60680.0,60679.0,0.40028254]
[1728571665694,0.001634,60680.0,60679.0,0.21148154]
[1728571665908,0.001634,60680.0,60679.0,0.39028254]
[1728571666130,0.001634,60680.0,60679.0,0.39928254]
[1728571666382,0.001634,60680.0,60679.0,0.38528254]
[1728571666626,0.001634,60680.0,60679.0,0.37628254]
[1728571666868,0.001634,60680.0,60679.0,0.39028254]
[1728571667364,0.001634,60680.0,60679.0,0.56450399]
[1728571667832,0.001634,60680.0,60679.0,0.46748254]
[1728571668306,0.001634,60680.0,60679.0,0.58148254]
[1728571668559,0.001634,60680.0,60679.0,0.56748254]
[1728571668797,0.001634,60680.0,60679.0,0.58148254]
[1728571669329,0.001634,60680.0,60679.0,0.60448254]
[1728571669794,0.001634,60680.0,60679.0,0.59048254]
[1728571670292,0.001634,60680.0,60679.0,0.60448254]
[1728571670744,0.001634,60680.0,60679.0,0.59048254]
[1728571670981,0.001634,60680.0,60679.0,0.60448254]
[1728571671458,0.001634,60680.0,60679.0,0.59048254]
[1728571671712,0.00138468,60681.0,60680.0,0.287798]
[1728571671961,0.00138468,60681.0,60680.0,0.4862369]
[1728571672964,0.00138468,60681.0,60680.0,0.5002369]
[1728571673212,0.24637217,60690.0,60689.0,0.187774]